fUSD/lending_fUSD_20260311
["ID","MTS","AMOUNT","RATE_DAILY","PERIOD"]
[408209477,1773244240447,-500.0,0.00019999,2]
[408209478,1773244240456,-500.0,0.00019999,2]
[408209479,1773244240466,-436.3340644,0.00019999,2]
[408209480,1773244240476,-500.0,0.00019999,2]
[408209481,1773244240486,-2793.9369217,0.00019999,2]
[408209482,1773244240495,-123468.6829059,0.00019999,2]
[408209483,1773244240504,-500.0,0.00019999,2]
[408209484,1773244240514,-500.0,0.00019999,2]
[408209485,1773244240523,-191.39028097,0.00019999,2]
[408209486,1773244240532,-500.0,0.00019999,2]
[408209487,1773244240541,-507.73038979,0.00019999,2]
[408209488,1773244240550,-500.0,0.00019999,2]
[408209489,1773244240559,-500.0,0.00019999,2]
[408209490,1773244240569,-501.54386851,0.00019999,2]
[408209491,1773244240578,-500.0,0.00019999,2]
[408209492,1773244240587,-500.0,0.00019999,2]
[408209493,1773244240596,-500.0,0.00019999,2]
[408209494,1773244240605,-500.0,0.00019999,2]
[408209495,1773244240615,-500.0,0.00019999,2]
[408209496,1773244240624,-500.0,0.00019999,2]
[408209497,1773244240634,-500.0,0.00019999,2]
[408209498,1773244240643,-500.0,0.00019999,2]
[408209499,1773244240652,-500.0,0.00019999,2]
[408209500,1773244240661,-500.0,0.00019999,2]
[408209501,1773244240670,-500.0,0.00019999,2]
[408209502,1773244240679,-500.0,0.00019999,2]
[408209503,1773244240688,-500.0,0.00019999,2]
[408209504,1773244240698,-506.32926117,0.00019999,2]
[408209505,1773244240707,-500.0,0.00019999,2]
[408209506,1773244240716,-3000.0,0.00019999,2]
[408209507,1773244240725,-3000.0,0.00019999,7]
[408209508,1773244240734,-500.0,0.00019999,2]
[408209509,1773244240744,-500.0,0.00019999,2]
[408209510,1773244240753,-500.0,0.00019999,2]
[408209511,1773244240762,-1152.0,0.00019999,2]
[408209512,1773244240772,-162.02090804,0.00019999,2]
[408209513,1773244240781,-539.9981187,0.00019999,2]
[408209514,1773244240790,-364.97685461,0.00019999,2]
[408209515,1773244240799,-170.92243951,0.00019999,2]
[408209516,1773244240810,-3213.0,0.0002,2]
[408209517,1773244240818,-3705.0,0.0002,2]
[408209518,1773244240828,-377028.3014844,0.0002,2]
[408209519,1773244240839,-1865.48,0.0002,2]
[408209520,1773244240848,-1793.32906339,0.0002,2]
[408209521,1773244240857,-276.759,0.0002,2]
[408209522,1773244240867,-2464.68,0.0002,2]
[408209523,1773244240876,-430112.60360855,0.0002,2]
[408209524,1773244240888,-1316.30482803,0.0002,2]
[408209530,1773244245547,-968.30182778,0.00019725,2]
[408209531,1773244245557,-877.78,0.00019738,2]
[408209532,1773244245566,-34189.06570074,0.0002,2]
[408209533,1773244245577,-335.819307,0.0002,2]
[408209534,1773244245588,-793.1136,0.0002,2]
[408209535,1773244245602,-285.02,0.0002,2]
[408209536,1773244245811,-11972.24903093,0.0002,2]
[408209537,1773244245824,-4102.17349907,0.0002,2]
[408209538,1773244245834,-3632.39532,0.0002,2]
[408209539,1773244245845,-1011.38516031,0.0002,2]
[408209540,1773244245856,-881.45672485,0.0002,2]
[408209541,1773244245867,-445.5,0.0002,2]
[408209557,1773244246310,-824.0,0.0002,2]
[408209584,1773245196474,184.0,9.347e-05,2]
[408209644,1773245431763,-171.63,0.00014869,2]
[408209645,1773245431774,-854.42,0.00015966,2]
[408209646,1773245431885,-993.76,0.00015966,2]
[408209647,1773245431895,-353.53,0.000163,7]
[408209648,1773245431904,-353.52,0.000163,2]
[408209649,1773245431914,-546.78037424,0.00016356,2]
[408209650,1773245431923,-2086.14660426,0.00016356,2]
[408209651,1773245431932,-300.0,0.00016617,2]
[408209652,1773245431941,-1200.0,0.00016617,2]
[408209653,1773245431951,-504.0,0.00017,2]
[408209654,1773245431961,-207.06,0.00017836,7]
[408209655,1773245431970,-570.90138723,0.00017917,2]
[408209656,1773245431979,-500.0,0.0001811,2]
[408209658,1773245431988,-227.0,0.00018156,2]
[408209659,1773245431999,-1680.0,0.00018247,2]
[408209660,1773245432009,-151.0,0.0001844,2]
[408209661,1773245432021,-198.57388744,0.0001844,2]
[408209662,1773245432031,-813.51170057,0.0001844,2]
[408209663,1773245432040,-166.0,0.0001844,2]
[408209664,1773245432051,-151.0,0.0001844,2]
[408209665,1773245432061,-151.0,0.0001844,2]
[408209666,1773245432070,-1516.0,0.0001844,2]
[408209667,1773245432079,-185.0,0.0001844,2]
[408209668,1773245432088,-151.0,0.0001844,2]
[408209669,1773245432098,-1516.0,0.0001844,2]
[408209670,1773245432107,-151.0,0.0001844,2]
[408209671,1773245432117,-151.0,0.0001844,2]
[408209672,1773245432126,-1516.0,0.0001844,2]
[408209673,1773245432135,-166.0,0.0001844,2]
[408209674,1773245432144,-151.0,0.0001844,2]
[408209675,1773245432154,-1516.0,0.0001844,2]
[408209676,1773245432163,-166.0,0.0001844,2]
[408209677,1773245432173,-166.0,0.0001844,2]
[408209678,1773245432182,-1516.0,0.0001844,2]
[408209679,1773245432191,-1516.0,0.0001844,2]
[408209680,1773245432201,-166.0,0.0001844,2]
[408209681,1773245432212,-1516.0,0.0001844,2]
[408209682,1773245432221,-12.07598228,0.0001844,2]
[408209683,1773245432234,-153.92401772,0.0001844,2]
[408209684,1773245432243,-1516.0,0.0001844,2]
[408209685,1773245432252,-166.0,0.0001844,2]
[408209686,1773245432262,-1516.0,0.0001844,2]
[408209687,1773245432272,-1516.0,0.0001844,2]
[408209688,1773245432282,-303.07059931,0.0001844,2]
[408209689,1773245432291,-1351.23310367,0.0001844,2]
[408209690,1773245432300,-1516.0,0.0001844,2]
[408209691,1773245432311,-1516.0,0.0001844,2]
[408209692,1773245432321,-500.39228547,0.000185,2]
[408209693,1773245432330,-500.53878535,0.000185,2]
[408209694,1773245432339,-500.58140027,0.000185,2]
[408209695,1773245432349,-6328.34,0.0001866,2]
[408209696,1773245432359,-184.0,0.00018694,2]
[408209697,1773245432369,-1896.37,0.00018765,2]
[408209698,1773245432379,-200.0,0.00018814,2]
[408209699,1773245432388,-2000.0,0.00018912,2]
[408209700,1773245432398,-504.0,0.00018969,3]
[408209701,1773245432407,-314.52141935,0.00018999,2]
[408209702,1773245432416,-328.739436,0.00019,2]
[408209703,1773245432426,-168.0,0.00019076,2]
[408209704,1773245432435,-3226.0,0.00019158,2]
[408209705,1773245432444,-224.0,0.00019204,2]
[408209706,1773245432454,-1000.0,0.00019253,2]
[408209707,1773245432463,-2037.0,0.00019307,2]
[408209708,1773245432472,-4999.99,0.00019339,2]
[408209709,1773245432481,-150.99,0.00019339,2]
[408209710,1773245432491,-5744.95,0.00019352,2]
[408209711,1773245432714,-345.27992099,0.00019366,2]
[408209712,1773245432725,-2461.0,0.00019425,2]
[408209713,1773245432734,-5996.0,0.00019425,2]
[408209714,1773245432744,-166.66,0.00019427,2]
[408209715,1773245432753,-300.0,0.000195,7]
[408209716,1773245432764,-224.0,0.00019514,2]
[408209717,1773245432774,-1000.0,0.00019527,2]
[408209718,1773245432783,-823.820744,0.000196,2]
[408209719,1773245432794,-600.0,0.000196,7]
[408209720,1773245432805,-224.0,0.00019695,2]
[408209721,1773245432815,-350.0,0.00019698,2]
[408209722,1773245432824,-160.0,0.00019698,2]
[408209723,1773245432833,-172.95802059,0.00019698,2]
[408209724,1773245432843,-1000.0,0.000197,7]
[408209725,1773245432852,-156.59839424,0.00019725,2]
[408209726,1773245432863,-488.93615762,0.00019725,2]
[408209727,1773245432872,-500.0,0.00019725,2]
[408209728,1773245432882,-500.0,0.00019725,2]
[408209729,1773245432891,-150.0,0.00019725,2]
[408209730,1773245432900,-150.0,0.00019725,2]
[408209731,1773245432909,-500.0,0.00019725,2]
[408209732,1773245432918,-150.0,0.00019725,2]
[408209733,1773245432927,-378.54384238,0.00019725,2]
[408209734,1773245432939,-286.45615762,0.00019725,2]
[408209735,1773245432948,-150.0,0.00019725,2]
[408209736,1773245432957,-500.0,0.00019725,2]
[408209737,1773245432967,-33.99276996,0.00019725,2]
[408209739,1773245438000,-466.00723004,0.00019725,2]
[408209740,1773245438010,-150.0,0.00019725,2]
[408209741,1773245438019,-500.0,0.00019725,2]
[408209742,1773245438029,-150.0,0.00019725,2]
[408209743,1773245438038,-500.0,0.00019725,2]
[408209744,1773245438049,-467.0,0.00019725,2]
[408209745,1773245438059,-500.0,0.00019725,2]
[408209746,1773245438069,-150.0,0.00019725,2]
[408209747,1773245438079,-150.0,0.00019725,2]
[408209748,1773245438089,-500.0,0.00019725,2]
[408209749,1773245438100,-150.0,0.00019725,2]
[408209750,1773245438109,-500.0,0.00019725,2]
[408209751,1773245438120,-150.0,0.00019726,2]
[408209752,1773245438130,-150.0,0.00019726,2]
[408209753,1773245438139,-150.0,0.00019726,2]
[408209754,1773245438149,-638.9701067,0.00019732,2]
[408209755,1773245438158,-224.0,0.00019744,2]
[408209756,1773245438167,-877.78,0.00019755,2]
[408209757,1773245438176,-500.0,0.0001978,2]
[408209758,1773245438185,-500.0,0.0001978,2]
[408209760,1773245438194,-150.0,0.0001978,2]
[408209762,1773245438203,-500.0,0.0001978,2]
[408209764,1773245438212,-150.0,0.0001978,2]
[408209766,1773245438221,-665.0,0.0001978,2]
[408209768,1773245438230,-150.0,0.0001978,2]
[408209770,1773245438239,-500.0,0.0001978,2]
[408209772,1773245438248,-500.0,0.0001978,2]
[408209774,1773245438257,-150.0,0.0001978,2]
[408209776,1773245438266,-407.74266326,0.0001978,2]
[408209778,1773245438281,-92.25733674,0.0001978,2]
[408209780,1773245438290,-150.0,0.0001978,2]
[408209782,1773245438299,-288.85763274,0.0001978,2]
[408209786,1773245438311,-211.14236726,0.0001978,2]
[408209788,1773245438320,-90.62217657,0.0001978,2]
[408209790,1773245438331,-376.37782343,0.0001978,2]
[408209792,1773245438340,-263.25651441,0.0001978,2]
[408209794,1773245438351,-236.74348559,0.0001978,2]
[408209796,1773245438360,-150.0,0.0001978,2]
[408209798,1773245438370,-500.0,0.0001978,2]
[408209800,1773245438379,-38.74412917,0.0001978,2]
[408209823,1773245440305,-414.0,0.00019425,2]
[408209824,1773245440315,-461.25587083,0.0001978,2]
[408209825,1773245440323,-150.0,0.00019781,2]
[408209826,1773245440333,-150.0,0.00019781,2]
[408209827,1773245440341,-21.88224053,0.00019781,2]
[408209828,1773245440353,-236.83102792,0.00019781,2]
[408209829,1773245440363,-148.73427364,0.000198,7]
[408209830,1773245440373,-1151.26572636,0.000198,7]
[408209831,1773245440382,-2000.0,0.000198,2]
[408209832,1773245440392,-1000.0,0.00019801,2]
[408209833,1773245440401,-500.0,0.00019835,2]
[408209834,1773245440411,-150.0,0.00019835,2]
[408209835,1773245440421,-500.0,0.00019835,2]
[408209836,1773245440430,-500.0,0.00019835,2]
[408209837,1773245440440,-150.0,0.00019835,2]
[408209838,1773245440450,-665.0,0.00019835,2]
[408209839,1773245440459,-450.0,0.00019835,2]
[408209840,1773245440468,-500.0,0.00019835,2]
[408209841,1773245440478,-200.0,0.00019835,2]
[408209842,1773245440487,-500.0,0.00019835,2]
[408209843,1773245440496,-200.0,0.00019835,2]
[408209844,1773245440505,-500.0,0.00019835,2]
[408209845,1773245440515,-467.0,0.00019835,2]
[408209846,1773245440527,-608.31593509,0.00019835,2]
[408209847,1773245440536,-150.0,0.00019835,2]
[408209848,1773245440546,-264.57090824,0.00019835,2]
[408209849,1773245440557,-500.0,0.00019835,2]
[408209850,1773245440567,-200.0,0.00019836,2]
[408209851,1773245440576,-200.0,0.00019836,2]
[408209852,1773245440585,-2318.228,0.00019836,2]
[408209853,1773245440594,-187.682,0.0001984,2]
[408209854,1773245440603,-17405.78691222,0.0001987,2]
[408209855,1773245440612,-2500.0,0.00019873,2]
[408209856,1773245440622,-500.0,0.00019889,2]
[408209857,1773245440631,-500.0,0.00019889,2]
[408209858,1773245440641,-500.0,0.00019889,2]
[408209859,1773245440650,-250.0,0.00019889,2]
[408209860,1773245440659,-665.0,0.00019889,2]
[408209861,1773245440668,-500.0,0.00019889,2]
[408209862,1773245440678,-500.0,0.00019889,2]
[408209863,1773245440687,-500.0,0.00019889,2]
[408209864,1773245440697,-467.0,0.00019889,2]
[408209865,1773245440706,-200.0,0.00019889,2]
[408209866,1773245440715,-500.0,0.00019889,2]
[408209867,1773245440730,-500.0,0.00019899,2]
[408209868,1773245440739,-500.0,0.00019899,2]
[408209869,1773245440748,-500.0,0.00019899,2]
[408209870,1773245440758,-500.0,0.00019899,2]
[408209871,1773245440767,-500.0,0.00019899,2]
[408209872,1773245440776,-500.0,0.00019899,2]
[408209873,1773245440785,-500.0,0.00019899,2]
[408209874,1773245440796,-1512.97058758,0.00019899,2]
[408209875,1773245440807,-4883.85971867,0.00019899,2]
[408209876,1773245440816,-1512.97058757,0.00019899,2]
[408209877,1773245440826,-1512.97058757,0.00019899,2]
[408209878,1773245440835,-1512.97058757,0.00019899,2]
[408209879,1773245440846,-1512.97058757,0.00019899,2]
[408209880,1773245440855,-1512.97058757,0.000199,2]
[408209881,1773245440864,-1512.97058757,0.000199,2]
[408209882,1773245440874,-1512.97058757,0.000199,2]
[408209883,1773245440883,-1512.97058757,0.000199,2]
[408209884,1773245440893,-500.0,0.000199,2]
[408209885,1773245440903,-2013.0,0.000199,2]
[408209886,1773245440912,-758.01210753,0.000199,2]
[408209887,1773245440922,-577.383143,0.000199,2]
[408209888,1773245440935,-1512.97058757,0.000199,2]
[408209889,1773245440944,-1700.0,0.000199,7]
[408209890,1773245440953,-5570.96939493,0.000199,2]
[408209891,1773245440962,-1776.40387911,0.000199,2]
[408209892,1773245440971,-556.76926854,0.000199,2]
[408209893,1773245440979,-2000.0,0.000199,2]
[408209894,1773245440989,-280.48,0.00019902,2]
[408209895,1773245440998,-360.77,0.00019944,2]
[408209896,1773245441007,-500.0,0.00019944,2]
[408209897,1773245441018,-500.0,0.00019944,2]
[408209898,1773245441028,-500.0,0.00019944,2]
[408209899,1773245441038,-665.0,0.00019944,2]
[408209900,1773245441047,-457.07135591,0.00019944,2]
[408209901,1773245441062,-500.0,0.00019944,2]
[408209902,1773245441071,-500.0,0.00019944,2]
[408209903,1773245441080,-467.0,0.00019944,2]
[408209904,1773245441089,-500.0,0.00019944,2]
[408209905,1773245441102,-153.39431908,0.00019958,2]
[408209906,1773245441112,-250.0,0.00019963,2]
[408209907,1773245441121,-224.0,0.00019963,2]
[408209908,1773245441130,-500.0,0.00019972,2]
[408209909,1773245441141,-500.0,0.00019972,2]
[408209910,1773245441151,-500.0,0.00019972,2]
[408209911,1773245441160,-500.0,0.00019972,2]
[408209912,1773245441169,-500.0,0.00019972,2]
[408209913,1773245441178,-500.0,0.00019972,2]
[408209914,1773245441187,-500.0,0.00019972,2]
[408209915,1773245441196,-333.80551454,0.00019972,2]
[408209916,1773245441206,-531.3103933,0.00019972,2]
[408209917,1773245441215,-500.0,0.00019972,2]
[408209918,1773245441224,-500.0,0.00019972,2]
[408209919,1773245441233,-500.0,0.00019972,2]
[408209920,1773245441242,-500.0,0.00019973,2]
[408209921,1773245441251,-500.97367586,0.00019973,2]
[408209922,1773245441261,-323.77109867,0.00019973,2]
[408209923,1773245441270,-500.0,0.00019973,2]
[408209924,1773245441280,-502.81664943,0.00019973,2]
[408209925,1773245441289,-224.0,0.00019976,2]
[408209926,1773245441299,-151.0,0.00019997,2]
[408209927,1773245441316,-151.0,0.00019997,2]
[408209928,1773245441327,-520.04,0.00019998,2]
[408209929,1773245441337,-433.66808291,0.00019998,2]
[408209930,1773245441346,-500.0,0.00019998,2]
[408209931,1773245441356,-500.0,0.00019998,2]
[408209932,1773245441366,-511.26791985,0.00019998,2]
[408209933,1773245441376,-500.0,0.00019998,2]
[408209934,1773245441386,-500.0,0.00019998,2]
[408209935,1773245441395,-500.0,0.00019998,2]
[408209936,1773245441405,-500.0,0.00019998,2]
[408209937,1773245441414,-500.0,0.00019998,2]
[408209938,1773245441429,-500.0,0.00019998,2]
[408209939,1773245441438,-500.0,0.00019998,2]
[408209940,1773245441448,-500.0,0.00019998,2]
[408209941,1773245441457,-500.0,0.00019998,2]
[408209942,1773245441466,-501.2232109,0.00019998,2]
[408209943,1773245441475,-500.0,0.00019998,2]
[408209944,1773245441485,-500.0,0.00019998,2]
[408209945,1773245441495,-500.0,0.00019998,2]
[408209946,1773245441504,-500.0,0.00019998,2]
[408209947,1773245441513,-244.71080266,0.00019998,2]
[408209948,1773245441522,-500.0,0.00019998,2]
[408209949,1773245441531,-500.0,0.00019998,2]
[408209950,1773245441548,-500.0,0.00019998,2]
[408209951,1773245441565,-500.0,0.00019998,2]
[408209952,1773245441575,-500.0,0.00019998,2]
[408209953,1773245441585,-500.0,0.00019998,2]
[408209954,1773245441595,-500.0,0.00019998,2]
[408209955,1773245441605,-500.0,0.00019998,2]
[408209956,1773245441615,-500.0,0.00019998,2]
[408209957,1773245441624,-632.30355302,0.00019998,2]
[408209958,1773245441634,-500.0,0.00019998,2]
[408209959,1773245441643,-397.97236465,0.00019998,2]
[408209960,1773245441653,-500.0,0.00019998,2]
[408209961,1773245441664,-500.0,0.00019998,2]
[408209962,1773245441674,-500.0,0.00019998,2]
[408209963,1773245441685,-500.0,0.00019998,2]
[408209964,1773245441696,-290.15326702,0.00019998,2]
[408209965,1773245441706,-500.0,0.00019998,2]
[408209966,1773245441717,-500.0,0.00019998,2]
[408209967,1773245441731,-500.0,0.00019998,2]
[408209968,1773245441740,-500.0,0.00019998,2]
[408209969,1773245441750,-500.0,0.00019998,2]
[408209970,1773245441760,-390.50271498,0.00019998,2]
[408209971,1773245441769,-177.94785083,0.00019998,2]
[408209972,1773245441779,-506.38605661,0.00019998,2]
[408209973,1773245441788,-500.0,0.00019998,2]
[408209974,1773245441798,-500.0,0.00019998,2]
[408209975,1773245441809,-500.0,0.00019998,2]
[408209976,1773245441819,-500.0,0.00019998,2]
[408209977,1773245441830,-500.0,0.00019998,2]
[408209978,1773245441840,-290.34081779,0.00019998,2]
[408209979,1773245441850,-500.0,0.00019998,2]
[408209980,1773245441860,-500.0,0.00019998,2]
[408209981,1773245441870,-500.0,0.00019998,2]
[408209982,1773245441880,-500.0,0.00019998,2]
[408209983,1773245441890,-500.0,0.00019998,2]
[408209984,1773245441901,-500.0,0.00019998,2]
[408209985,1773245441910,-500.0,0.00019998,2]
[408209986,1773245441920,-500.0,0.00019998,2]
[408209987,1773245441930,-506.77106008,0.00019998,2]
[408209988,1773245441939,-500.0,0.00019998,2]
[408209989,1773245441948,-500.0,0.00019998,2]
[408209990,1773245441958,-500.0,0.00019998,2]
[408209991,1773245441968,-500.0,0.00019999,2]
[408209992,1773245441977,-500.0,0.00019999,2]
[408209993,1773245441987,-500.0,0.00019999,2]
[408209994,1773245441997,-665.0,0.00019999,2]
[408209995,1773245442008,-500.0,0.00019999,2]
[408209996,1773245442019,-500.0,0.00019999,2]
[408209997,1773245442030,-467.0,0.00019999,2]
[408209998,1773245442040,-500.0,0.00019999,2]
[408209999,1773245442050,-331.17474243,0.00019999,2]
[408210000,1773245442062,-300.0,0.00019999,2]
[408210001,1773245442071,-500.0,0.00019999,2]
[408210002,1773245442082,-11633.8621274,0.00019999,2]
[408210003,1773245442091,-500.0,0.00019999,2]
[408210004,1773245442100,-339328.565304,0.00019999,2]
[408210005,1773245442113,-500.0,0.00019999,2]
[408210006,1773245442122,-500.0,0.00019999,2]
[408210007,1773245442132,-500.0,0.00019999,2]
[408210008,1773245442141,-500.0,0.00019999,2]
[408210009,1773245442150,-500.0,0.00019999,2]
[408210010,1773245442160,-500.0,0.00019999,2]
[408210011,1773245442169,-500.0,0.00019999,2]
[408210012,1773245442178,-500.0,0.00019999,2]
[408210013,1773245442188,-500.0,0.00019999,2]
[408210014,1773245442197,-500.0,0.00019999,2]
[408210015,1773245442206,-500.0,0.00019999,2]
[408210016,1773245442216,-500.0,0.00019999,2]
[408210017,1773245442225,-455.71019482,0.00019999,2]
[408210018,1773245442235,-500.0,0.00019999,2]
[408210019,1773245442244,-500.0,0.00019999,2]
[408210020,1773245442253,-500.0,0.00019999,2]
[408210021,1773245442263,-436.3340644,0.00019999,2]
[408210022,1773245442273,-520.04,0.00019999,2]
[408210023,1773245442282,-520.04,0.00019999,2]
[408210024,1773245442292,-520.04,0.00019999,2]
[408210025,1773245442301,-520.04,0.00019999,2]
[408210026,1773245442314,-520.04,0.00019999,2]
[408210027,1773245442324,-520.04,0.00019999,2]
[408210028,1773245442333,-520.04,0.00019999,2]
[408210029,1773245442343,-126786.593795,0.00019999,2]
[408210030,1773245442352,-2793.9369218,0.00019999,2]
[408210031,1773245442362,-7123.1018334,0.00019999,2]
[408210032,1773245442371,-500.0,0.00019999,2]
[408210033,1773245442381,-191.39028097,0.00019999,2]
[408210034,1773245442391,-507.73038979,0.00019999,2]
[408210035,1773245442400,-500.0,0.00019999,2]
[408210036,1773245442410,-500.0,0.00019999,2]
[408210037,1773245442419,-500.0,0.00019999,2]
[408210038,1773245442429,-500.0,0.00019999,2]
[408210039,1773245442439,-500.0,0.00019999,2]
[408210040,1773245442448,-500.0,0.00019999,2]
[408210041,1773245442458,-500.0,0.00019999,2]
[408210042,1773245442467,-500.0,0.00019999,2]
[408210043,1773245442477,-500.0,0.00019999,2]
[408210044,1773245442486,-500.0,0.00019999,2]
[408210045,1773245442499,-500.0,0.00019999,2]
[408210046,1773245442509,-256.17008248,0.00019999,2]
[408210047,1773245442518,-500.0,0.00019999,2]
[408210048,1773245442528,-527.47030383,0.00019999,2]
[408210049,1773245442538,-500.0,0.00019999,2]
[408210050,1773245442548,-3000.0,0.00019999,2]
[408210051,1773245442559,-3000.0,0.00019999,7]
[408210052,1773245442569,-1152.0,0.00019999,2]
[408210053,1773245442579,-540.06969346,0.00019999,2]
[408210054,1773245442588,-302.05324321,0.00019999,2]
[408210055,1773245442598,-500.0,0.00019999,2]
[408210056,1773245442607,-500.0,0.00019999,2]
[408210059,1773245442617,-500.0,0.00019999,2]
[408210061,1773245442627,-421.01785379,0.00019999,2]
[408210063,1773245442636,-364.97685461,0.00019999,2]
[408210064,1773245442645,-170.92243951,0.00019999,2]
[408210066,1773245442655,-5120.0,0.0002,2]
[408210067,1773245442664,-4086.0,0.0002,2]
[408210068,1773245442673,-364626.46223398,0.0002,2]
[408210080,1773245442878,-836.33806888,0.0002,2]
[408210081,1773245442890,-2365.275,0.0002,2]
[408210082,1773245442901,-2511.0,0.0002,2]
[408210083,1773245442912,-3295.39,0.0002,2]
[408210084,1773245443104,-1579.90723878,0.000199,2]
[408210085,1773245443114,-28850.37126767,0.0002,2]
[408210086,1773245443183,-477.68284541,0.00019,2]
[408210087,1773245443206,-333.29125559,0.00019,2]
[408210088,1773245443215,-297651.1157115,0.0002,2]
[408210089,1773245443226,-7071.20969335,0.0002,2]
[408210090,1773245443264,-42.45282941,0.0002,2]
[408210097,1773245445975,-721.56809003,0.0002,2]
[408210160,1773246631935,-2114.12689999,0.0001635,2]
[408210161,1773246631947,-63436.07221533,0.0001635,2]
[408210162,1773246631969,-16307.13988839,0.0001635,2]
[408210163,1773246631983,-16874.54372822,0.0001635,2]
[408210164,1773246631993,-283.0868,0.00016373,2]
[408210165,1773246632002,-2500.0,0.00016497,2]
[408210166,1773246632012,-300.0,0.00016505,2]
[408210167,1773246632023,-1200.0,0.00016505,2]
[408210168,1773246632032,-500.0,0.0001675,2]
[408210169,1773246632043,-160.0,0.00016769,2]
[408210170,1773246632053,-152.0,0.00016769,2]
[408210171,1773246632064,-160.0,0.00016769,2]
[408210172,1773246632073,-152.0,0.00016769,2]
[408210173,1773246632083,-160.45403572,0.00016769,2]
[408210174,1773246632096,-504.0,0.00017,2]
[408210175,1773246632105,-8075.47198911,0.00017254,2]
[408210176,1773246632165,-458.94308623,0.00017254,2]
[408210178,1773246632175,-15.18605981,0.00017911,2]
[408210315,1773246638049,-151.47394019,0.00017911,2]
[408210316,1773246638059,-671.35605981,0.0001801,2]
[408210520,1773246640257,-1828.64394019,0.0001801,2]
[408210522,1773246640267,-420.0,0.00018036,2]
[408210524,1773246640276,-1680.0,0.00018126,2]
[408210526,1773246640285,-170.49,0.00018234,2]
[408210528,1773246640294,-150.0,0.00018252,2]
[408210529,1773246640303,-166.66,0.00018288,2]
[408210531,1773246640313,-1495.50196746,0.00018322,2]
[408210533,1773246640322,-175.1,0.00018476,2]
[408210535,1773246640333,-392.66,0.00018619,2]
[408210537,1773246640342,-550.0,0.00018627,2]
[408210540,1773246640354,-184.87,0.00018628,2]
[408210542,1773246640363,-3240.0,0.00018628,2]
[408210544,1773246640372,-200.0,0.00018628,2]
[408210546,1773246640382,-2985.6980874,0.00018636,2]
[408210548,1773246640390,-166.66,0.00018665,2]
[408210550,1773246640399,-492.0,0.0001874,2]
[408210552,1773246640410,-569.86462419,0.00018837,2]
[408210554,1773246640420,-388.52,0.00018908,2]
[408210556,1773246640429,-504.0,0.00018909,3]
[408210558,1773246640438,-154.66,0.00018965,2]
[408210560,1773246640447,-6168.91051897,0.00018985,2]
[408210561,1773246640456,-500.0,0.00018999,2]
[408210563,1773246640465,-556.31089229,0.00018999,2]
[408210565,1773246640475,-500.0,0.00018999,2]
[408210566,1773246640483,-500.0,0.00018999,2]
[408210567,1773246640492,-500.0,0.00018999,2]
[408210568,1773246640502,-500.0,0.00018999,2]
[408210569,1773246640511,-500.0,0.00018999,2]
[408210570,1773246640520,-500.0,0.00018999,2]
[408210571,1773246640528,-284.09538921,0.00018999,2]
[408210572,1773246640537,-351.33848121,0.00019,30]
[408210573,1773246640560,-4648.66151879,0.00019,30]